Cogmind - Beta 14 @@@ ROGUE MODE // 2024.08.17 @ 04:43:43 Player: Lillith Result: Self-destructed Performance ------------- Evolutions (4) 2000 Regions Visited (7) 1400 Robots Destroyed (39) 195 Value Destroyed (1411) 1411 Prototype IDs (15) 300 Alien Tech Used (0) 0 Bonus (502) 502 TOTAL SCORE: 5808 Bonus ------- Follower Combat Kills 202 Registered with UFD 300 Cogmind --------- Core Integrity 584/850 Matter 286/300 Energy 243/300 System Corruption 19% Temperature Warm (159) Movement Core (850) Ox16 Location -6/Factory Parts ------- > --- POWER (1) -------- Angular Momentum Engine > --- PROPULSION (6) --- Armored Huge Wheel > --- UTILITY (6) ------ Large Storage Unit Deep Structural Scanner Spectral Analyzer Experimental Targeting Computer Hacking Suite Improved System Shield > --- WEAPON (2) ------- Cooled Plasma Cannon Cooled Plasma Cannon > --- INVENTORY (15) --- Fission Core Fission Core Improved Heavy Siege Treads VSS Leg Experimental Targeting Computer Improved Particle Charger Transmission Jammer Authchip [Propulsion] Authchip [Propulsion] Gauss Rifle Hypervelocity Gauss Rifle Missile Launcher Scythe Companion Sword Peak State ------------ > --- POWER ------------ Angular Momentum Engine > --- PROPULSION ------- VSS Leg VSS Leg VSS Leg VSS Leg Arachnoskeleton Armored Huge Wheel > --- UTILITY ---------- Large Storage Unit Deep Structural Scanner Spectral Analyzer Experimental Targeting Computer Hacking Suite Improved System Shield > --- WEAPON ----------- Cooled Plasma Cannon Cooled Plasma Cannon > --- INVENTORY -------- Fission Core Fission Core Improved Heavy Siege Treads VSS Leg Experimental Targeting Computer Improved Particle Charger Transmission Jammer Authchip [Propulsion] Authchip [Propulsion] Gauss Rifle Hypervelocity Gauss Rifle Missile Launcher Scythe Companion Sword [Rating: 93] Favorites ----------- Power Makeshift Power Source Engine Makeshift Power Source Power Core Light Nuclear Core Reactor Cold Fusion Reactor Propulsion VSS Leg Leg VSS Leg Wheel Subdweller Monowheel Utility High-capacity Storage Unit Device Subdweller Optics Storage High-capacity Storage Unit Processor Spectral Analyzer Hackware Improved System Shield Protection Scrap Shield Weapon Subdweller Beam Cannon Energy Gun Particle Gun Energy Cannon Subdweller Beam Cannon Ballistic Gun Assault Rifle Ballistic Cannon Antimatter Cannon Slashing Weapon Scythe Build | -11 -10 -10 -8 -8 -6 -6 -6 ------- Run | Yrd Mat Sub Rec Scr Fac Was Fac Slots Evolved 8 | . . . . . 8 . . Power . | . . . . . . . . Propulsion 4 | . . . . . 4 . . Utility 4 | . . . . . 4 . . Weapon . | . . . . . . . . Parts Attached 96 | 6 17 17 4 7 37 1 7 Power 13 | 1 1 3 . . 8 . . Engine 8 | 1 1 2 . . 4 . . Core 3 | . . 1 . . 2 . . Reactor 2 | . . . . . 2 . . Propulsion 25 | 2 2 5 2 4 9 . 1 Treads . | . . . . . . . . Leg 19 | 2 2 3 . 3 9 . . Wheel 6 | . . 2 2 1 . . 1 Hover . | . . . . . . . . Flight . | . . . . . . . . Utility 29 | 1 7 3 1 2 9 . 6 Device 11 | . 3 1 1 . 3 . 3 Storage 7 | 1 4 1 . 1 . . . Processor 3 | . . . . . 1 . 2 Hackware 4 | . . . . . 3 . 1 Protection 4 | . . 1 . 1 2 . . Artifact . | . . . . . . . . Weapon 29 | 2 7 6 1 1 11 1 . Energy Gun 4 | . 2 2 . . . . . Energy Cannon 7 | . . 2 . . 4 1 . Ballistic Gun 12 | 2 4 1 . . 5 . . Ballistic Cannon 1 | . . . . . 1 . . Launcher . | . . . . . . . . Special Weapon . | . . . . . . . . Impact Weapon . | . . . . . . . . Slashing Weapon 5 | . 1 1 1 1 1 . . Piercing Weapon . | . . . . . . . . Special Melee Weapon . | . . . . . . . . Unidentified Prototypes 6 | . . . . 1 4 . 1 Parts Lost 17 | . 3 7 . . 3 2 2 Power 3 | . 1 2 . . . . . Propulsion 6 | . . 2 . . 2 . 2 Utility 4 | . . 1 . . 1 2 . Weapon 4 | . 2 2 . . . . . Highest Loss Streak 4 | . 2 4 . . 1 2 2 To Critical Strikes 2 | . 1 . . . . 1 . Average Slot Usage (%) 88 | . 99 78 100 96 71 73 85 Engine 9 | . 14 3 14 14 3 5 5 Core 2 | . . 10 . . 1 . . Leg 18 | . 28 27 . 4 30 38 33 Wheel 10 | . . . 27 23 . . 1 Device 8 | . 13 1 14 11 5 . 6 Storage 9 | . 14 2 14 13 5 5 5 Processor 1 | . . . . . 4 5 9 Hackware 1 | . . . . . 3 5 11 Protection 3 | . . 11 . 1 3 . . Energy Gun 2 | . 11 2 5 . . . . Energy Cannon 8 | . . 13 14 11 3 11 11 Ballistic Gun 4 | . 16 4 . . 5 . . Slashing Weapon 5 | . . . 8 14 1 . . Peak Build Rating 93 | 6 11 19 21 30 89 88 93 Average Rating 32 | 4 9 13 20 21 79 78 90 On Entrance 30 | . 6 9 16 21 30 88 77 Naked Turns . | . . . . . . . . Heaviest Build 65 | 14 31 56 58 56 65 61 54 Greatest Support 122 | 20 20 30 40 32 122 62 62 Greatest Overweight (x) 5 | 1 1 5 2 5 1 . 1 Average Overweight (x) 1 | . . 1 1 2 . . . Largest Inventory Capacity 20 | 8 15 20 20 20 15 15 15 Average Capacity 14 | 6 9 6 20 19 15 15 15 Most Carried 20 | 2 10 13 19 20 15 15 15 Average Carried 13 | 1 7 5 16 18 14 14 14 Final Capacity 20 | 8 10 20 20 15 15 15 15 Final Carried 19 | 2 10 13 19 14 15 15 15 Class Distribution -------------------- 53% | Scavenger-Mutant 38% | Mutant 7% | Hacker-Mutant Dominant Class ---------------- Mutant | -10/Materials Scavenger-Mutant | -10/Subcaves Scavenger-Mutant | -8/Recycling Scavenger-Mutant | -8/Scraptown Mutant | -6/Factory Mutant | -6/Waste Hacker-Mutant | -6/Factory Resources | -11 -10 -10 -8 -8 -6 -6 -6 ----------- Run | Yrd Mat Sub Rec Scr Fac Was Fac Matter Collected 1770 | 206 296 287 40 . 824 . 117 Remotely . | . . . . . . . . Salvage Created 1852 | . 449 441 . . 845 . 117 Parts 84 | . 27 24 . . 32 . 1 Haulers Intercepted 3 | . 2 . . . . . 1 Recyclers Shooed . | . . . . . . . . Parts Field Recycled . | . . . . . . . . Retrieved Matter . | . . . . . . . . Parts Self-Destructed 14 | . . 14 . . . . . Prevented . | . . . . . . . . Kills | -11 -10 -10 -8 -8 -6 -6 -6 ------- Run | Yrd Mat Sub Rec Scr Fac Was Fac Combat Hostiles Destroyed 30 | . 10 9 . . 11 . . Guns 21 | . 10 3 . . 8 . . Cannons 6 | . . 5 . . 1 . . Classes Destroyed 11 | . 3 3 . . 5 . . Worker 1 | . . . . . 1 . . Hauler 3 | . 2 . . . . . 1 Recycler 1 | . . . . . 1 . . Operator 2 | . . . . . 2 . . Turret 2 | . . 2 . . . . . Swarmer 5 | . 3 2 . . . . . Grunt 12 | . 7 2 . . 3 . . Sentry 2 | . . 1 . . 1 . . Hunter 4 | . . . . . 4 . . Programmer 3 | . . . . . 3 . . Subdweller 4 | . . 4 . . . . . Best Kill Streak 3 | . 3 3 . . 2 . 1 Combat Bots Only 3 | . 3 3 . . 2 . . Max Kills in Single Turn 1 | . 1 1 . . 1 . 1 Gunslinging . | . . . . . . . . Exploded . | . . . . . . . . Melee . | . . . . . . . . Uniques/NPCs Destroyed . | . . . . . . . . Combat | -11 -10 -10 -8 -8 -6 -6 -6 -------- Run | Yrd Mat Sub Rec Scr Fac Was Fac Hostile Shots Fired 405 | . 73 72 2 . 250 3 5 Missed 115 | . 22 22 1 . 68 2 . Damage Taken 4511 | . 585 785 13 . 2984 51 93 Core 499 | . 51 182 . . 266 . . Absorbed by Shields . | . . . . . . . . Regen/Repaired (Parts) 57 | . . . . . 57 . . Core Remaining (%) 53 | 100 . . . 6 . . . Volleys Fired 168 | . 43 49 1 . 72 . 3 Largest 2 | . 2 2 1 . 2 . 2 Hottest 210 | . 85 160 80 . 210 . 210 Shots Fired 301 | . 81 74 1 . 139 . 6 Gun 218 | . 81 33 . . 104 . . Cannon 83 | . . 41 1 . 35 . 6 Launcher . | . . . . . . . . Special . | . . . . . . . . Kinetic 185 | . 58 23 . . 104 . . Thermal 116 | . 23 51 1 . 35 . 6 Explosive . | . . . . . . . . Electromagnetic . | . . . . . . . . Robot Hit Streak 18 | . 10 18 . . 17 . 11 Robot Miss Streak 7 | . 7 2 . . 4 . 1 Penetration Max 1 | . . . . . 1 . . Secondary Targets 1 | . . . . . 1 . . Max Gunslinging Chain 1 | . . . . . 1 . . Shots Hit Robots 196 | . 50 48 . . 95 . 3 Core Hits 63 | . 20 16 . . 26 . 1 Critical Kills 4 | . . 1 . . 2 . 1 Critical Parts Destroyed . | . . . . . . . . Critical Strikes 4 | . . 1 . . 2 . 1 Meltdown 4 | . . 1 . . 2 . 1 Melee Attacks 11 | . 3 1 . . 7 . . Impact . | . . . . . . . . Slashing 11 | . 3 1 . . 7 . . Piercing . | . . . . . . . . Sneak Attacks 3 | . . . . . 3 . . Combat Hostiles . | . . . . . . . . Follow-up Attacks . | . . . . . . . . Damage Inflicted 4302 | . 690 1012 . . 2465 . 135 Guns 2413 | . 689 355 . . 1369 . . Cannons 1541 | . . 611 . . 795 . 135 Explosions . | . . . . . . . . Melee 347 | . . 46 . . 301 . . Ramming 1 | . 1 . . . . . . Kinetic 2039 | . 456 214 . . 1369 . . Thermal 1915 | . 233 752 . . 795 . 135 Explosive . | . . . . . . . . Electromagnetic . | . . . . . . . . Impact . | . . . . . . . . Slashing 347 | . . 46 . . 301 . . Piercing . | . . . . . . . . Highest Corruption 19 | . . . . . 3 19 19 Average Corruption 5 | . . . . . 2 13 19 Corruption Purged . | . . . . . . . . Corruption Blocked . | . . . . . . . . Effects 30 | . . . . . 21 5 4 Message Errors 11 | . . . . . 8 2 1 Matter Fused 7 | . . . . . 5 2 . Heat Flow Errors 2 | . . . . . 2 . . Energy Discharges 1 | . . . . . 1 . . Data Loss (minor) 3 | . . . . . 1 . 2 Data Loss (major) 3 | . . . . . 2 . 1 Misdirections 1 | . . . . . . 1 . Weapon Failures 2 | . . . . . 2 . . Overload Shots 6 | . . . . . 4 . 2 Effects 1 | . . . . . . . 1 Short Circuit 1 | . . . . . . . 1 Overflow Damage 180 | . . 35 . . 145 . . Projectiles 95 | . . 35 . . 60 . . Explosions . | . . . . . . . . Melee 85 | . . . . . 85 . . Knockbacks . | . . . . . . . . Impact . | . . . . . . . . Kinetic . | . . . . . . . . Secondary . | . . . . . . . . Self-Inflicted Damage . | . . . . . . . . Shots . | . . . . . . . . Rammed . | . . . . . . . . Targets Rammed 1 | . 1 . . . . . . Kicked 1 | . 1 . . . . . . Crushed . | . . . . . . . . Highest Temperature 363 | . 147 104 54 . 363 . 141 Average Temperature 53 | . 56 22 27 . 72 . 94 Received Heat Transfer 1026 | . 258 327 . . 396 . 45 Effects 1 | . . . . . 1 . . Shutdowns 1 | . . . . . 1 . . Siege Activations . | . . . . . . . . Robots Corrupted . | . . . . . . . . Combat Hostiles . | . . . . . . . . Parts Fried . | . . . . . . . . Impact Corruptions . | . . . . . . . . Robots Melted 4 | . . 1 . . 2 . 1 Combat Hostiles 3 | . . 1 . . 2 . . Parts Melted 8 | . 1 3 . . 3 . 1 Heat Transferred 3072 | . 555 1147 . . 1190 . 180 Parts Sabotaged . | . . . . . . . . Parts Stolen . | . . . . . . . . Parts Stripped . | . . . . . . . . Power Chain Reactions . | . . . . . . . . Alert | -11 -10 -10 -8 -8 -6 -6 -6 ------- Run | Yrd Mat Sub Rec Scr Fac Was Fac Peak Influence 252 | . 252 . 168 . 220 15 52 Initial 74 | . . . 74 . . 11 10 Average 67 | . 85 . 48 . 77 9 26 Maximum Alert Level 1 | . 1 . . . 1 . . Low Security (%) 97 | 100 91 . 100 . 99 100 100 Level 1 2 | . 8 . . . . . . Level 2 . | . . . . . . . . Level 3 . | . . . . . . . . Level 4 . | . . . . . . . . Level 5 . | . . . . . . . . High Security . | . . . . . . . . Max Security . | . . . . . . . . Squads Dispatched 12 | . 1 . . . 9 . 2 Investigation 5 | . 1 . . . 3 . 1 Extermination 4 | . . . . . 4 . . Reinforcement 3 | . . . . . 2 . 1 Assault . | . . . . . . . . Garrison . | . . . . . . . . Intercept . | . . . . . . . . Searches Triggered . | . . . . . . . . Construction Impeded 1 | . . . . . 1 . . Haulers Reinforced 1 | . . . . . . . 1 Active Scanning Responses . | . . . . . . . . Cargo Convoy Interrupts . | . . . . . . . . Stealth | -11 -10 -10 -8 -8 -6 -6 -6 --------- Run | Yrd Mat Sub Rec Scr Fac Was Fac Distress Signals 2 | . 2 . . . . . . Communications Jammed . | . . . . . . . . Distress Signals . | . . . . . . . . Times Spotted 68 | . 24 13 3 . 16 6 6 Peak Tracking Total 7 | . 7 3 2 . 3 6 4 Tactical Retreats 6 | . 3 2 . . . 1 . Traps | -11 -10 -10 -8 -8 -6 -6 -6 ------- Run | Yrd Mat Sub Rec Scr Fac Was Fac Traps Triggered 2 | . 1 . . . 1 . . Indirectly . | . . . . . . . . Trap Hack Attempts . | . . . . . . . . Triggered . | . . . . . . . . Disarmed . | . . . . . . . . Reprogrammed . | . . . . . . . . Reused . | . . . . . . . . Traps Extracted . | . . . . . . . . Installed . | . . . . . . . . Triggered . | . . . . . . . . Machines | -11 -10 -10 -8 -8 -6 -6 -6 ---------- Run | Yrd Mat Sub Rec Scr Fac Was Fac Machines Disabled 3 | . . 1 . . 2 . . Max in Single Turn 1 | . . 1 . . 1 . . Machines Repaired . | . . . . . . . . Machines Dismantled . | . . . . . . . . Machines Sabotaged . | . . . . . . . . Overloaded Fab Kills . | . . . . . . . . Hacking | -11 -10 -10 -8 -8 -6 -6 -6 --------- Run | Yrd Mat Sub Rec Scr Fac Was Fac Machines Accessed 35 | . 7 . 11 4 10 . 3 Terminals 18 | . 6 . 5 . 6 . 1 Fabricators 1 | . . . . . 1 . . Repair Stations 1 | . . . . . 1 . . Recycling Units 9 | . 1 . 6 . 2 . . Scanalyzers 1 | . . . . . . . 1 Garrison Access 1 | . . . . . . . 1 Total Hacks 121 | . 24 . 29 31 29 . 8 Successful 73 | . 16 . 12 31 12 . 2 Failed 48 | . 8 . 17 . 17 . 6 Catastrophic 9 | . 1 . 3 . 2 . 3 Database Lockouts . | . . . . . . . . Manual 43 | . 18 . 8 . 16 . 1 Terminals 61 | . 21 . 18 . 20 . 2 Fabricators 3 | . . . . . 3 . . Repair Stations 2 | . . . . . 2 . . Recycling Units 18 | . 3 . 11 . 4 . . Scanalyzers 2 | . . . . . . . 2 Garrison Access 4 | . . . . . . . 4 Terminal Hacks 49 | . 8 . 5 31 4 . 1 Record 25 | . . . 1 23 . . 1 Robot Schematic 1 | . . . . . 1 . . Robot Analysis 13 | . 4 . . 7 2 . . Prototype ID Bank 1 | . . . 1 . . . . Open Door 1 | . . . . 1 . . . Open DSF 1 | . . . . . 1 . . Alert Level 1 | . . . 1 . . . . Unreport Threat 3 | . 2 . 1 . . . . Locate Traps 1 | . 1 . . . . . . Hauler Manifests 1 | . 1 . . . . . . Registered Components 1 | . . . 1 . . . . Fabricator Hacks 2 | . . . . . 2 . . Network Status 1 | . . . . . 1 . . Build 1 | . . . . . 1 . . Repair Station Hacks . | . . . . . . . . Recycling Unit Hacks 4 | . . . 4 . . . . Retrieve Components 4 | . . . 4 . . . . Scanalyzer . | . . . . . . . . Garrison Access Hacks . | . . . . . . . . Unauthorized Hacks 18 | . 8 . 3 . 6 . 1 Terminals 16 | . 8 . 3 . 4 . 1 Botnet 2 | . 2 . . . . . . Skim 14 | . 6 . 3 . 4 . 1 Fabricators . | . . . . . . . . Repair Stations 2 | . . . . . 2 . . Recycling Units . | . . . . . . . . Fedlink 2 | . . . . . 2 . . Scanalyzers . | . . . . . . . . Garrison Access . | . . . . . . . . Data Cores Recovered 1 | . . . . . 1 . . Used . | . . . . . . . . Hacking Detections 25 | . 7 . 7 . 8 . 3 Full Trace Events 5 | . 1 . 2 . 1 . 1 Feedback Events . | . . . . . . . . Feedback Blocked . | . . . . . . . . Robot Schematics Acquired 1 | . . . . . 1 . . Robots Built . | . . . . . . . . Authchips . | . . . . . . . . Time . | . . . . . . . . Total Robot Build Rating . | . . . . . . . . Part Schematics Acquired . | . . . . . . . . Parts Built 1 | . . . . . 1 . . Authchips . | . . . . . . . . Time 128 | . . . . . 128 . . Total Part Build Rating 8 | . . . . . 8 . . Parts Repaired . | . . . . . . . . Time . | . . . . . . . . Parts Recycled . | . . . . . . . . Recycled Matter . | . . . . . . . . Retrieved Matter . | . . . . . . . . Retrieved Components 10 | . . . 10 . . . . Parts Scanalyzed . | . . . . . . . . Part Schematics Acquired . | . . . . . . . . Parts Damaged . | . . . . . . . . Bothacking | -11 -10 -10 -8 -8 -6 -6 -6 ------------ Run | Yrd Mat Sub Rec Scr Fac Was Fac Used RIF Installer . | . . . . . . . . Robots Hacked . | . . . . . . . . Non-combat . | . . . . . . . . Combat . | . . . . . . . . Robot Hacks Applied . | . . . . . . . . Relay Couplers Released . | . . . . . . . . Fabnet Peak Effective % . | . . . . . . . . Robots Rewired 4 | . . . 4 . . . . Allies Hacked . | . . . . . . . . Hacks Repelled . | . . . . . . . . Allies | -11 -10 -10 -8 -8 -6 -6 -6 -------- Run | Yrd Mat Sub Rec Scr Fac Was Fac Total Allies 4 | . . . 4 . . . . Largest Group 4 | . . . 4 2 2 . . Highest-Rated Group 74 | . . . 74 30 30 . . Highest-Rated Ally 34 | . . . 34 15 15 . . Total Orders . | . . . . . . . . Ally Attacks 10 | . . . 8 . 2 . . Total Damage 687 | . . . 648 . 39 . . Kills 8 | . . . 8 . . . . Allies Corrupted . | . . . . . . . . Allies Melted . | . . . . . . . . Intel | -11 -10 -10 -8 -8 -6 -6 -6 ------- Run | Yrd Mat Sub Rec Scr Fac Was Fac Robot Analysis Total 13 | . 4 . . 7 2 . . Derelict Logs Recovered 6 | . . 1 . 5 . . . Drone Launches . | . . . . . . . . Drone Recoveries . | . . . . . . . . Exploration | -11 -10 -10 -8 -8 -6 -6 -6 ------------- Run | Yrd Mat Sub Rec Scr Fac Was Fac Turns Passed 8095 | 72 1285 1361 864 2526 1633 144 210 Spaces Moved 5338 | 55 622 640 667 1876 1138 156 184 Core 8 | 8 . . . . . . . Treads . | . . . . . . . . Legs 2792 | 47 622 593 . 118 1138 156 118 Wheels 2538 | . . 47 667 1758 . . 66 Hover . | . . . . . . . . Flight . | . . . . . . . . Fastest Speed 50 | 50 120 120 107 107 90 90 90 Average Speed 131 | 112 173 184 111 132 100 90 98 Slowest Speed 210 | 120 190 200 130 210 180 90 115 Overloaded Moves . | . . . . . . . . Propulsion Burnouts . | . . . . . . . . Robots Hopped . | . . . . . . . . Cave-ins Triggered . | . . . . . . . . Exploration Rate (%) 47 | 3 68 34 87 89 17 81 4 Regions Visited 7 Branch Regions 3 Pre-discovered Areas 6 | . . . . 6 . . . Known Exits Taken . | . . . . . . . . Unknown Exits Taken 5 | 1 1 1 1 1 . . . Scrap Searched 4 | . . . . 4 . . . Spaces Dug 8 | . 1 . 1 . 6 . . Terrain Destroyed 20 | . 1 2 1 . 14 . 2 Melee 1 | . 1 . . . . . . Projectile 18 | . . 2 1 . 13 . 2 AOE . | . . . . . . . . Terrain Rammed . | . . . . . . . . Walls Destroyed . | . . . . . . . . Machines Disabled . | . . . . . . . . Actions | -11 -10 -10 -8 -8 -6 -6 -6 --------- Run | Yrd Mat Sub Rec Scr Fac Was Fac Total 6097 | 62 740 746 786 1918 1480 158 207 Wait 304 | . 39 17 70 5 167 . 6 Move 5332 | 54 621 639 666 1875 1138 155 184 Hop . | . . . . . . . . Pick Up 69 | 2 9 7 9 17 22 1 2 Fast Attach 31 | 6 2 6 . 2 12 1 2 Attach 38 | . 3 6 3 5 16 . 5 Detach 24 | . 1 3 2 4 10 . 4 Swap 27 | . 12 5 1 . 9 . . Drop 55 | . 6 8 2 10 27 1 1 Fire 168 | . 43 49 1 . 72 . 3 Melee 11 | . 3 1 . . 7 . . Ram . | . . . . . . . . Kick 1 | . 1 . . . . . . Crush . | . . . . . . . . Escape Stasis . | . . . . . . . . Rewire 33 | . . 1 32 . . . . Trap . | . . . . . . . . Miscellaneous 4 | . . 4 . . . . . Route ------- -11/Scrapyard -10/Materials (discovered 5 exits: [*Mat x2] / [*Min x2] / [*Sub]) -10/Subcaves -8/Recycling (discovered 2 exits: *Fac / *Scr) -8/Scraptown (discovered 2 exits: *Fac x2) -6/Factory (discovered 4 exits: Fac x2 / Low x2) -6/Waste -6/Factory History --------- Turn | Location | Event 17 | -11/Scrapyard | Discovered new exit (range 16) 73 | -11/Scrapyard | Entered Materials 315 | -10/Materials | Build established: Mutant 400 | -10/Materials | Discovered new exit (range 3) 649 | -10/Materials | Discovered new exit (range 8) 1049 | -10/Materials | Discovered new exit (range 7) 1064 | -10/Materials | Discovered new exit (range 8) 1299 | -10/Materials | Loaded intel: 11 interactive machine locations 1352 | -10/Materials | Discovered new exit (range 3) 1358 | -10/Materials | Entered Subcaves 1366 | -10/Subcaves | Learned 8 Materials zone layouts 1467 | -10/Subcaves | A Subdweller sparked back to life 1496 | -10/Subcaves | Core integrity fell below 50% 1547 | -10/Subcaves | Lost 4 parts (1p2n1u) 1591 | -10/Subcaves | Found Prototype Leg 1769 | -10/Subcaves | Core integrity fell below 20% 1802 | -10/Subcaves | Build established: Scavenger-Mutant 2444 | -10/Subcaves | A swath of the cavern ceiling suddenly collapsed 2613 | -10/Subcaves | Discovered new exit (range 10) 2719 | -10/Subcaves | Entered Recycling 3142 | -8/Recycling | Discovered new exit (range 7) 3519 | -8/Recycling | Scanned before Scraplab entrance 3536 | -8/Recycling | Entered Scraplab 3545 | -8/Recycling | Discovered new exit (range 3) 3583 | -8/Recycling | Entered Scraptown 3583 | -8/Scraptown | Accompanied by 2 allies 3752 | -8/Scraptown | Heard Great Nut preacher, LISTEN AND RECITE! 3867 | -8/Scraptown | Scanned Subdweller tech in exchange for log data 3869 | -8/Scraptown | Learned location of 2 exits from Proximity Caves 3870 | -8/Scraptown | Learned Factory garrison access intel 3871 | -8/Scraptown | Learned Research terminal intel 3872 | -8/Scraptown | Learned location of Testing (-2) 3874 | -8/Scraptown | Learned location of Zion (-7) 3893 | -8/Scraptown | Discovered new exit (range 11) 4175 | -8/Scraptown | Visited Awakened 4229 | -8/Scraptown | Visited Spacefarers 4300 | -8/Scraptown | Visited Cave Peace 4354 | -8/Scraptown | Visited SPCMW 4397 | -8/Scraptown | Visited Red Mages 4484 | -8/Scraptown | Visited Symbiants 4496 | -8/Scraptown | Visited Cyclists 4565 | -8/Scraptown | Visited UFD Registry 4565 | -8/Scraptown | Registered with UFD as "Gravflow" 4641 | -8/Scraptown | Visited Observation Area 4718 | -8/Scraptown | Visited Chapter 10 4780 | -8/Scraptown | Visited Sword Containment 4805 | -8/Scraptown | Visited Cartography Club 4836 | -8/Scraptown | Visited Research Penetration Think Tank 4934 | -8/Scraptown | Visited Infowarlord's Domain 5008 | -8/Scraptown | Visited Analyses Database 5076 | -8/Scraptown | Visited Curators Association 5194 | -8/Scraptown | Delivered Scrap Shield to a Scientist 5423 | -8/Scraptown | Found Spectral Analyzer 5565 | -8/Scraptown | Found Scrap Suit 5855 | -8/Scraptown | Learned location of Recycling (-8) 5855 | -8/Scraptown | Learned location of Lower Caves (-6) 5855 | -8/Scraptown | Learned location of Cetus (-4) 5855 | -8/Scraptown | Learned 8 Materials zone layouts 5855 | -8/Scraptown | Learned 12 Materials zone layouts 5855 | -8/Scraptown | Learned 16 Factory zone layouts 5855 | -8/Scraptown | Learned 16 Lower Caves zone layouts 5855 | -8/Scraptown | Learned 12 Upper Caves zone layouts 5855 | -8/Scraptown | Learned 24 Upper Caves zone layouts 5855 | -8/Scraptown | Learned 8 Proximity Caves zone layouts 5855 | -8/Scraptown | Learned 16 Proximity Caves zone layouts 5855 | -8/Scraptown | Learned 24 Proximity Caves zone layouts 5855 | -8/Scraptown | Learned location of 2 exits from Factory 5855 | -8/Scraptown | Learned location of 1 exit from Research 5855 | -8/Scraptown | Learned location of 3 exits from Upper Caves 5895 | -8/Scraptown | Build established: Mutant 5901 | -8/Scraptown | Found Deep Structural Scanner 6096 | -8/Scraptown | Discovered new exit (range 3) 6109 | -8/Scraptown | Entered Factory 6109 | -6/Factory | Accompanied by 2 allies 6109 | -6/Factory | Evolved 8 slots: Propulsion x4, Utility x4 6109 | -6/Factory | Identified Arachnoskeleton 6110 | -6/Factory | Identified exit to Lower Caves 6110 | -6/Factory | Attached Arachnoskeleton, gained temporary slots: Propulsion x3 6111 | -6/Factory | Identified exit to Factory 6113 | -6/Factory | Loaded intel: 4 garrison access locations 6505 | -6/Factory | Build established: Hacker-Mutant 6874 | -6/Factory | Build established: Mutant 7020 | -6/Factory | Fabricated Imp. Heavy Siege Treads? 7742 | -6/Factory | Sucked down chute 7742 | -6/Factory | Entered Waste 7750 | -6/Waste | Spotted C-40 Crusher 7757 | -6/Waste | EMP discharged 7757 | -6/Waste | System corruption reached 10% 7766 | -6/Waste | Crushed by Compactor (0 parts destroyed, 1 dropped) 7807 | -6/Waste | Spotted C-40 Crusher 7808 | -6/Waste | Spotted C-40 Crusher 7808 | -6/Waste | Spotted C-40 Crusher 7808 | -6/Waste | Spotted C-40 Crusher 7817 | -6/Waste | Spotted C-40 Crusher 7857 | -6/Waste | EMP discharged 7865 | -6/Waste | Discovered new exit (range 10) 7886 | -6/Waste | Entered Factory 7939 | -6/Factory | Found Prototype Processor 7958 | -6/Factory | Identified Exp. Targeting Computer 7972 | -6/Factory | Found Exp. Targeting Computer 8096 | -6/Factory | Self-destructed Last Messages --------------- 07970_ Acquired 16 matter. 07972_ Acquired Exp. Targeting Computer. 07984_ ALERT: All DSF locations entering lockdown mode. 07989_ System corrupted: Component data lost. 07994_ Connecting with Garrison Access... 07994_ ALERT: Suspicious activity at Garrison Access F002. Dispatching Investigation squad. 08007_ Dropped VSS Leg. 08010_ Acquired Arm. Huge Wheel. 08011_ HHPSN 3||:MG: DPC#WS Map ----- +----------------------------------------------------+ | ?????????????????????????????????????????????????? | | ?????????????????????????????????????????????????? | | ???????????????????????????????????????????####### | | ???????????????????????????????????????????####### | | ???????????????????????????????????????????####### | | ????????????????????????????????????? ########## | | ????????????????????????????????????? ####### | | ??????????????????????? ### ####### | | ??????????????????????? ### ####### | | ??????????????????????? ### # # | | ???????????????????????/#############+### # | | ???????????????????? # | | ???????????????????? + | | ????????????????????? # | | ??????????????????? # | | ????????? # | | ?????????################## #####+######### | | ?????????################## # ###### | | ?????????################## # """""" ######### | | ?????????#### # # """""" ######### | | ?????????#### # # """""" ######### | | ?????????#### # # """""" ######### | | ?????????#### """ """ # # ####??### | | ?????????#### """ """ # # " " ####??### | | ?????????#### """ """ """ # # ""G"" ######### | | ?????????#### """ =@= g + = ######### | | ?????????#### "S """ """ g w######+########### | | ?????????#### """ """ """ # ###### ########### | | ?????????#### "" """ """ # g | | ?????????#### + ###### ######## | | ?????????####################+######## ######## | | ?????????############## + ######## | | ?????????############## ####+######## | | ?????????############## # ! ### | | ???????????????????#### # ### | | ???????????????????#### # ### | | ???????????????????#### ! # = ### | | ???????????????????############################### | | | | | | | | | | | | | | | | | | | | | | | | | +----------------------------------------------------+ Best States ------------- Heat Dissipation 39 Energy Generation 18 Energy Capacity 310 Matter Stores 300 Matter Capacity 300 Sight Range 24 Terrain Scan Density 85 Jamming Range 12 Armor Coverage 800 Evasion (%) 57 Targeting Accuracy 12 Particle Charging 20 Offensive Hacking 10 Defensive Hacking 12 Authchip Count 3 Item Schematics ----------------- None Robot Schematics ------------------ G-50 Soldier | -6/Factory | Hacked Fabricated ------------ Imp. Heavy Siege Treads | x1 | -6/Factory | Preloaded Alien Tech Used ----------------- None Achievements -------------- Close Call Challenges ------------ None Game ------ Seed SpreadThunderNullifier Manual? 0 Play Time 01:11:43 Cumulative 25.3 hours Start 2024.08.17 @ 03:31:37 End 2024.08.17 @ 04:43:43 Sessions 1 Manual Loads 0 Difficulty Rogue Special Mode None Game No. 45 Rogue 45 Adventurer 0 Explorer 0 Win Type - Total 0 Types 0/0/0/0/0/0/0/0/0 Lore% 32 Gallery% 25 Achievement% 23 Wizard Run 0 Options --------- Layout 2 ASCII 0 Keyboard 1 Movement Arrows Keybinds 0 Fullscreen 2 Font 32/SmallcapsGlow Map View 50x44 Zoom Use 0% Tactical HUD 1 Map Filters NONE Filters NONE Steam 1 RUN: 00175c55-6d42-409b-85d8-49b7339679a5